[Event "Fagernes GM Open Autumn 2024"]
[Site "Fagernes"]
[Date "2024.10.12"]
[Round "8.9"]
[White "Oksendal, Martin"]
[Black "Sasikiran, Krishnan"]
[Result "1/2-1/2"]
[ECO "C97"]
[WhiteElo "2271"]
[BlackElo "2571"]
[Annotator "TA"]
[PlyCount "160"]
[EventDate "2024.10.03"]
[EventType "swiss"]
[EventCountry "NOR"]
[SourceTitle "playchess.com"]
[Source "ChessBase"]
[SourceQuality "1"]
[TimeControl "40/6000:2400+30"]

{[%evp 53,160,0,113,76,83,80,59,60,58,64,53,58,68,79,81,85,79,15,64,17,22,0,0,0,0,0,0,-827,198,-1133,189,197,202,199,199,202,205,205,176,149,5875,5695,4898,239,244,79,80,0,229,105,105,105,105,83,91,42,42,42,42,42,42,42,73,42,42,42,42,42,42,0,44,18,18,18,18,18,18,18,18,18,18,18,18,18,18,18,560,545,538,531,458,18,18,0,0,0,0,0,0,0,8,0,0,0,0,0,0,0,0]} 1. e4 {[%emt 0:01:31]} e5 {[%emt 0:00:00]} 2. Nf3 {[%emt 0:00:00]} Nc6 {[%emt 0:00:00]} 3. Bb5 {[%emt 0:00:12]} a6 {[%emt 0:00:00]} 4. Ba4 {[%emt 0:00:00]} Nf6 {[%emt 0:00:00]} 5. O-O {[%emt 0:00:00]} Be7 {[%emt 0:00:00]} 6. Re1 {[%emt 0:00:00]} b5 {[%emt 0:00:00]} 7. Bb3 {[%emt 0:00:00]} d6 {[%emt 0:00:00]} 8. c3 {[%emt 0:00:00]} O-O {[%emt 0:00:00]} 9. h3 {[%emt 0:00:00]} Na5 {[%emt 0:00:00]} 10. Bc2 {[%emt 0:00:00]} c5 {[%emt 0:00:00]} 11. d4 {[%emt 0:00:00]} Qc7 {[%emt 0:00:00]} 12. d5 {[%emt 0:03:22]} Nc4 {[%emt 0:00:00]} 13. b3 {[%emt 0:00:00] C97: Closed Ruy Lopez: Chigorin Defence: 11 d4 Qc7, sidelines.} Nb6 {[%emt 0:00:00]} 14. a4 {[%emt 0:00:18]} c4 $1 {[%emt 0:00:00][%mdl 4] is now more promising than 14...Bd7.} 15. bxc4 {[%emt 0:01:19]} Bd7 {[%emt 0:05:19]} 16. axb5 {[%emt 0:10:09]} axb5 {[%emt 0:01:27]} 17. Rxa8 {[%emt 0:00:00]} Rxa8 {[%emt 0:00:00]} 18. cxb5 {[%emt 0:01:15]} Bxb5 {[%emt 0:02:56]} 19. Bd3 {[%emt 0:05:59]} Ba4 $146 {[%emt 0:22:55]} ({Predecessor:} 19... Bxd3 20. Qxd3 Nfd7 21. Ba3 Qc4 22. Qd1 g6 23. Bb4 Ra1 24. Nfd2 Qa6 25. Nb3 Ra2 {½-½ Steiger,W (2300)-Morais,G (2328) W-ch34 prel02 email 2010}) 20. Qe2 {[%emt 0:03:20]} Nfd7 {[%emt 0:05:50]} 21. Be3 {[%emt 0:10:28]} Nc5 {[%emt 0:06:19]} 22. Nbd2 {[%emt 0:07:30]} Bd7 {[%emt 0:04:34]} 23. Bb5 {[%emt 0:15:49]} h6 {[%emt 0:17:25]} 24. Rb1 {[%emt 0:09:38]} Nca4 {[%emt 0:11:00]} 25. Qd3 {[%emt 0:05:49]} Nc5 {[%emt 0:03:41]} 26. Qe2 {[%emt 0:00:00]} Nca4 {[%emt 0:02:41]} 27. Qd3 {[%emt 0:00:00]} Nc5 $1 {[%emt 0:01:13]} 28. Bxc5 {[%emt 0:07:03]} Qxc5 {[%emt 0:00:00]} 29. Bxd7 {[%emt 0:00:00]} (29. c4 {feels hotter.} Ra3 30. Qf1 Bd8 31. Qd1) 29... Nxd7 {[%emt 0:00:00]} 30. Nb3 {[%emt 0:01:26]} Qc7 {[%emt 0:02:39]} 31. c4 {[%emt 0:00:23]} Ra2 {[%emt 0:02:34]} 32. Rc1 {[%emt 0:03:16]} Qb6 {[%emt 0:01:55]} 33. c5 $1 {[%emt 0:03:49]} Nxc5 {[%emt 0:02:35]} 34. Nxc5 {[%emt 0:00:00]} dxc5 {[%emt 0:00:00]} 35. Rb1 {[%emt 0:00:20]} (35. Nxe5 $2 Qb2 36. Qe3 Qxe5 $19) ({White should play} 35. Rf1 $1 $16) 35... Qa7 {[%emt 0:01:40]} (35... c4 $11 36. Rxb6 (36. Qxc4 $2 Qxf2+ 37. Kh2 Qxg2#) 36... cxd3) 36. Qb5 {[%emt 0:02:35]} (36. Nxe5 c4 37. Qg3 (37. Qxc4 $2 Qxf2+ 38. Kh2 Qxg2#) 37... Bd6 $17) (36. Rf1 $1 $14) 36... Bd6 $11 {[%emt 0:01:40]} 37. Nxe5 {[%emt 0:03:18]} c4 {[%emt 0:00:49]} 38. Rf1 $1 {[%emt 0:00:29]} (38. Nxc4 $2 Qxf2+ 39. Kh1 Qxg2#) 38... c3 {[%emt 0:00:08]} 39. Qe8+ {[%emt 0:00:00]} Kh7 $1 {[%emt 0:00:02]} 40. Nxf7 $2 {[%emt 0:00:00][%mdl 8192]} (40. Qc8 $11 c2 (40... Bxe5 41. Qf5+ Kh8 42. Qxe5 $11) 41. Nd3) 40... Bg3 $4 {[%emt 0:00:04][%mdl 8192] [#]} (40... c2 $1 $19 {[%cal Rc2c1]} 41. Nxd6 Ra1 (41... c1=Q $2 42. Qf8 $19)) 41. Qh8+ $1 $18 {[%emt 0:23:29]} (41. e5 {gets mated.} Rxf2 (41... Bxf2+ $2 42. Kh1 $19)) 41... Kg6 {[%emt 0:00:41] [#]} 42. Ne5+ $1 {[%emt 0:00:06]} Bxe5 {[%emt 0:16:24]} 43. Qe8+ {[%emt 0:00:04]} Kh7 {[%emt 0:00:09]} 44. Qxe5 {[%emt 0:00:04]} Qc5 {[%emt 0:02:40]} 45. Qf5+ {[%emt 0:06:50]} Kg8 {[%emt 0:01:39]} 46. d6 {[%emt 0:02:46]} Qc4 $2 {[%emt 0:07:19][%mdl 8192]} (46... Qxf5 $16 47. exf5 Kf7) 47. d7 $18 {[%emt 0:02:50]} Rd2 {[%emt 0:02:02]} 48. Rc1 $2 {[%emt 0:04:53]} (48. Ra1 {White wants to mate with Ra8+.} Qc6 49. Ra7 (49. Rb1 Qd6 $18) 49... Rd1+ 50. Kh2 Qd6+ 51. e5) 48... Qc7 $18 {[%emt 0:08:22]} 49. Qe6+ $2 {[%emt 0:01:18]} (49. Ra1 $18 {Intending Ra8+ and mate.} Qd8 50. Qe5 Rxd7 51. Qxc3) 49... Kh7 $16 {[%emt 0:00:46]} 50. Qf5+ {[%emt 0:00:11]} (50. e5 $16 {Threatens to win with Qf5+.} Rxd7 51. Qf5+ Kg8 52. e6) 50... Kh8 $2 {[%emt 0:01:20]} (50... Kg8 $1 $11 {and Black has nothing to worry.}) 51. e5 {[%emt 0:02:11]} (51. Qf3 $18 {and White stays clearly on top.}) 51... Rxd7 $16 {[%emt 0:01:07]} 52. e6 {[%emt 0:00:38]} Rd8 {[%emt 0:01:39]} 53. Qe4 {[%emt 0:01:19]} Qc5 {[%emt 0:01:34]} 54. Qe3 {[%emt 0:00:39]} (54. h4 $16) 54... Qxe3 $14 {[%emt 0:01:31]} 55. fxe3 {[%emt 0:00:02]} Re8 {[%emt 0:00:44]} 56. Rxc3 {[%emt 0:00:04]} Rxe6 {[%emt 0:00:03]} 57. Kf2 {[%emt 0:00:05]} Kg8 {[%emt 0:00:20]} 58. Rc7 {[%emt 0:00:15]} Rf6+ {[%emt 0:00:37]} 59. Ke2 {[%emt 0:00:06]} Rg6 {[%emt 0:00:20]} 60. Kf3 {[%emt 0:00:20]} Rf6+ {[%emt 0:00:18]} 61. Ke2 {[%emt 0:00:18]} Rg6 {[%emt 0:00:10]} 62. g4 {[%emt 0:00:03]} h5 {[%emt 0:00:34]} 63. Kf3 {[%emt 0:00:07]} Rf6+ {[%emt 0:00:56]} 64. Ke4 {[%emt 0:00:34]} hxg4 {[%emt 0:00:55]} 65. hxg4 {[%emt 0:00:02]} Rg6 {[%emt 0:00:46]} 66. Kf5 {[%emt 0:00:17]} Rf6+ {[%emt 0:00:19]} 67. Ke5 {[%emt 0:00:35]} Rg6 {[%emt 0:00:12]} 68. Rc4 {[%emt 0:01:19]} Kf7 {[%emt 0:00:34]} 69. Rf4+ {[%emt 0:00:22]} Ke7 $2 {[%emt 0:00:38][%mdl 8192]} (69... Kg8 $11 {and Black stays safe.}) 70. Kf5 $18 {[%emt 0:00:07]} Rf6+ {[%emt 0:00:39]} 71. Kg5 {[%emt 0:00:11]} Ra6 {[%emt 0:00:39]} 72. Rb4 $2 {[%emt 0:01:13]} (72. e4 $18 Rb6 73. e5) 72... Re6 {[%emt 0:00:31]} 73. e4 {[%emt 0:00:29]} Kf7 {[%emt 0:00:11]} 74. Rb7+ {[%emt 0:00:43]} Kg8 {[%emt 0:00:30]} 75. Kf5 {[%emt 0:00:15]} Rf6+ {[%emt 0:00:02]} 76. Ke5 {[%emt 0:00:19]} Rg6 {[%emt 0:00:08]} 77. g5 {[%emt 0:01:03]} Rxg5+ {[%emt 0:00:36]} 78. Ke6 {[%emt 0:00:01]} Rg6+ {[%emt 0:00:45]} 79. Ke7 {[%emt 0:00:11]} Rg5 {[%emt 0:00:25]} 80. Ke6 {[%emt 0:00:10]} Rg6+ {[%emt 0:00:06]} 1/2-1/2

[Event "Fagernes GM Open Autumn 2024"]
[Site "Fagernes"]
[Date "2024.10.12"]
[Round "8.10"]
[White "Mitusov, Semen"]
[Black "Fiskaaen, Martin Holten"]
[Result "1/2-1/2"]
[ECO "B94"]
[WhiteElo "2486"]
[BlackElo "2259"]
[Annotator "TA"]
[PlyCount "46"]
[EventDate "2024.10.03"]
[EventType "swiss"]
[EventCountry "NOR"]
[SourceTitle "playchess.com"]
[Source "ChessBase"]
[SourceQuality "1"]
[TimeControl "40/6000:2400+30"]

{[%evp 12,46,18,13,13,-19,-21,-47,-52,-37,17,-11,0,0,0,0,0,0,0,-5,121,0,44,35,34,25,108,114,180,0,0,0,0,0,0,0,0]} 1. e4 {[%emt 0:00:06]} c5 {[%emt 0:00:00]} 2. Nf3 {[%emt 0:00:34]} d6 {[%emt 0:00:00]} 3. d4 {[%emt 0:00:00]} cxd4 {[%emt 0:00:00]} 4. Nxd4 {[%emt 0:00:00]} Nf6 {[%emt 0:00:00]} 5. Nc3 {[%emt 0:00:00]} a6 {[%emt 0:00:00]} 6. Bg5 {[%emt 0:00:00]} Nbd7 {[%emt 0:00:00]} 7. Bc4 {[%emt 0:00:11]} Qb6 {[%emt 0:00:00]} 8. Qd2 {[%emt 0:22:46]} Qxb2 {[%emt 0:03:14]} 9. Rb1 {[%emt 0:00:38]} Qa3 {[%emt 0:00:36] Black is slightly better.} 10. O-O {[%emt 0:05:41]} g6 {[%emt 0:06:20]} (10... e6 $15) 11. Bd5 {[%emt 0:08:50]} Bg7 {[%emt 0:18:13]} 12. Bxb7 {[%emt 0:05:29]} Bxb7 {[%emt 0:00:56]} 13. Rxb7 {[%emt 0:00:27]} O-O {[%emt 0:19:41]} 14. Nc6 {[%emt 0:10:44]} Nc5 {[%emt 0:16:33] Against Rb3} 15. Rxe7 {[%emt 0:17:10][%cal Og5f6]} Rac8 {[%emt 0:00:31]} (15... Ne6 $11 {remains equal.} 16. Bh4 Qc5) 16. Nd4 {[%emt 0:05:38] White is more active.} (16. Bxf6 $16 Bxf6 17. Nd5) 16... Ne6 {[%emt 0:03:05]} 17. Nxe6 {[%emt 0:05:43]} fxe6 {[%emt 0:00:00]} 18. Nb1 {[%emt 0:02:11]} Qxa2 {[%emt 0:02:17]} (18... Qc5 $1 $11 {keeps the balance.} 19. Rxg7+ (19. Rxe6 Qc4 $17) 19... Kxg7 20. Bh6+ Kg8 21. Bxf8 Kxf8) 19. Qxd6 $16 {[%emt 0:00:00]} Nxe4 {[%emt 0:07:35] [#]} (19... Qc4 $16) 20. Qd7 $2 {[%emt 0:05:11]} (20. Rxg7+ $1 $18 Kxg7 21. Qd7+ (21. Qd4+ Kg8 $18) 21... Rf7 (21... Kg8 22. Bh6 Qa1 23. c3) 22. Qd4+ (22. Qxc8 Nxg5 23. Qc3+ Kg8 $14) 22... Kg8 (22... Nf6 $2 23. Bxf6+ Kg8 24. Nd2 $18) 23. Qxe4) 20... Bf6 $11 {[%emt 0:03:25] The position is equal.} 21. Bxf6 {[%emt 0:03:01]} Nxf6 {[%emt 0:00:00]} 22. Qxe6+ {[%emt 0:00:15]} Qxe6 {[%emt 0:00:00]} 23. Rxe6 {[%emt 0:00:00]} Rxc2 {[%emt 0:00:00] Weighted Error Value: White=0.25 (precise) /Black=0.35.  Missed win:     	White=1     	---        Mistake:       	White=1     	Black=4      Inaccurate:     	White=3     	Black=1      OK:         	White=4     	Black=5      Best:        	White=2     	Black=2} 1/2-1/2

[Event "Fagernes GM Open Autumn 2024"]
[Site "Fagernes"]
[Date "2024.10.12"]
[Round "8.11"]
[White "Bhagat Kush"]
[Black "Blomqvist, Erik"]
[Result "1/2-1/2"]
[ECO "C45"]
[WhiteElo "2245"]
[BlackElo "2483"]
[Annotator "RC"]
[PlyCount "131"]
[EventDate "2024.10.03"]
[EventType "swiss"]
[EventCountry "NOR"]
[SourceTitle "playchess.com"]
[Source "ChessBase"]
[SourceQuality "1"]
[TimeControl "40/6000:2400+30"]

1. e4 {[%emt 0:00:00]} e5 {[%emt 0:03:21]} 2. Nf3 {[%emt 0:00:00]} Nc6 {[%emt 0:00:00]} 3. d4 {[%emt 0:00:00]} exd4 {[%emt 0:00:00]} 4. Nxd4 {[%emt 0:00:00]} Nf6 {[%emt 0:00:20]} 5. Nxc6 {[%emt 0:00:00]} bxc6 {[%emt 0:00:00]} 6. e5 {[%emt 0:00:00]} Qe7 {[%emt 0:00:00]} 7. Qe2 {[%emt 0:00:00]} Nd5 {[%emt 0:00:00]} 8. h4 {[%emt 0:00:00]} Qe6 {[%emt 0:00:00]} 9. Nd2 {[%emt 0:00:00]} a5 {[%emt 0:00:00]} 10. Nf3 {[%emt 0:00:00]} Ba6 {[%emt 0:00:00]} 11. c4 {[%emt 0:00:00]} Nb6 {[%emt 0:00:00]} 12. b3 {[%emt 0:00:00]} Bb4+ {[%emt 0:00:00]} 13. Bd2 {[%emt 0:01:22]} O-O {[%emt 0:00:00]} 14. Qe3 {[%emt 0:24:27]} Bxd2+ {[%emt 0:20:50]} 15. Qxd2 {[%emt 0:05:41]} d6 {[%emt 0:07:55]} 16. Bd3 {[%emt 0:09:15]} f5 {[%emt 0:01:48]} 17. Qe3 {[%emt 0:25:15]} Rae8 {[%emt 0:04:22]} 18. Nd4 {[%emt 0:02:07]} Qf7 {[%emt 0:36:44]} 19. e6 {[%emt 0:11:45]} Qf6 {[%emt 0:04:23]} 20. O-O {[%emt 0:01:22]} Bc8 {[%emt 0:09:07]} 21. Nxc6 {[%emt 0:03:12]} Qxh4 {[%emt 0:00:43]} 22. Nd4 {[%emt 0:06:31]} f4 {[%emt 0:00:48]} 23. Qh3 {[%emt 0:03:56]} Qxh3 {[%emt 0:00:00]} 24. gxh3 {[%emt 0:00:00]} c5 {[%emt 0:01:16]} 25. Nf3 {[%emt 0:01:10]} Rxe6 {[%emt 0:00:00]} 26. h4 {[%emt 0:00:42]} h6 {[%emt 0:00:00]} 27. Rfe1 {[%emt 0:00:12]} Kf7 {[%emt 0:00:45]} 28. h5 {[%emt 0:00:21]} Kf6 {[%emt 0:00:00]} 29. Bg6 {[%emt 0:00:12]} Rd8 {[%emt 0:00:57]} 30. Rxe6+ {[%emt 0:00:32]} Bxe6 {[%emt 0:00:00]} 31. Re1 {[%emt 0:00:00]} Bf5 {[%emt 0:02:52]} 32. Nh4 {[%emt 0:00:00]} Bxg6 {[%emt 0:00:00]} 33. Nxg6 {[%emt 0:00:00]} Kg5 {[%emt 0:00:37]} 34. Re4 {[%emt 0:00:00]} Kxh5 {[%emt 0:00:36]} 35. Nxf4+ {[%emt 0:00:00]} Kg5 {[%emt 0:00:00]} 36. Ne6+ {[%emt 0:00:00]} Kf5 {[%emt 0:00:00]} 37. Nxd8 {[%emt 0:00:00]} Kxe4 {[%emt 0:00:00]} 38. Nb7 {[%emt 0:00:00]} a4 {[%emt 0:00:41]} 39. Nxd6+ {[%emt 0:00:00]} Kd4 {[%emt 0:01:12]} 40. Nf5+ {[%emt 0:00:00]} Kc3 {[%emt 0:00:03]} 41. bxa4 {[%emt 0:07:43]} Nxa4 {[%emt 0:06:26]} 42. Nxg7 {[%emt 0:05:53]} Kxc4 {[%emt 0:00:03]} 43. f4 {[%emt 0:17:59]} Kd4 {[%emt 0:04:52]} 44. Kf2 {[%emt 0:05:35]} Ke4 {[%emt 0:02:20]} 45. Ke2 {[%emt 0:04:20]} Nc3+ {[%emt 0:06:24]} 46. Kd2 {[%emt 0:00:26]} Nxa2 {[%emt 0:00:03]} 47. f5 {[%emt 0:00:47]} Ke5 {[%emt 0:00:12]} 48. Kd3 {[%emt 0:01:44]} Nb4+ {[%emt 0:00:35]} 49. Kc4 {[%emt 0:00:05]} Na6 {[%emt 0:00:07]} 50. Kb5 {[%emt 0:00:24]} Kf6 {[%emt 0:00:23]} 51. Ne8+ {[%emt 0:00:06]} Kxf5 {[%emt 0:04:12]} 52. Kxa6 {[%emt 0:00:04]} Kf4 {[%emt 0:08:12]} 53. Nc7 {[%emt 0:02:35]} c4 {[%emt 0:01:26]} 54. Kb5 {[%emt 0:00:21]} c3 {[%emt 0:00:20]} 55. Nd5+ {[%emt 0:00:04]} Kf3 {[%emt 0:00:03]} 56. Nxc3 {[%emt 0:00:12]} h5 {[%emt 0:00:03]} 57. Nb1 {[%emt 0:00:55]} h4 {[%emt 0:06:10]} 58. Nd2+ {[%emt 0:00:05]} Kg2 {[%emt 0:01:21]} 59. Nc4 {[%emt 0:00:03]} Kf2 {[%emt 0:00:30]} 60. Ne5 {[%emt 0:00:19]} Kg3 {[%emt 0:00:40]} 61. Nc4 {[%emt 0:00:10]} Kf2 {[%emt 0:05:05]} 62. Ne5 {[%emt 0:00:05]} Kg3 {[%emt 0:00:22]} 63. Nc4 {[%emt 0:00:04]} h3 {[%emt 0:00:02]} 64. Ne3 {[%emt 0:00:07]} h2 {[%emt 0:00:02]} 65. Nf1+ {[%emt 0:00:04]} Kg2 {[%emt 0:00:02]} 66. Nxh2 {[%emt 0:00:04]} 1/2-1/2

[Event "Fagernes GM Open Autumn 2024"]
[Site "Fagernes"]
[Date "2024.10.12"]
[Round "8.12"]
[White "Laddha, Shubh Jayesh"]
[Black "Oye-Stromberg, Alexander"]
[Result "1/2-1/2"]
[ECO "C77"]
[WhiteElo "2308"]
[BlackElo "2248"]
[Annotator "RC"]
[PlyCount "78"]
[EventDate "2024.10.03"]
[EventType "swiss"]
[EventCountry "NOR"]
[SourceTitle "playchess.com"]
[Source "ChessBase"]
[SourceQuality "1"]
[TimeControl "40/6000:2400+30"]

1. e4 {[%emt 0:00:00]} e5 {[%emt 0:00:00]} 2. Nf3 {[%emt 0:00:00]} Nc6 {[%emt 0:00:00]} 3. Bb5 {[%emt 0:00:00]} a6 {[%emt 0:00:36]} 4. Ba4 {[%emt 0:00:00]} Nf6 {[%emt 0:00:00]} 5. d3 {[%emt 0:00:00]} b5 {[%emt 0:00:00]} 6. Bb3 {[%emt 0:00:00]} Bc5 {[%emt 0:00:00]} 7. Nc3 {[%emt 0:00:00]} h6 {[%emt 0:01:31]} 8. Nd5 {[%emt 0:00:00]} d6 {[%emt 0:00:00]} 9. c3 {[%emt 0:00:00]} Be6 {[%emt 0:00:32]} 10. Nxf6+ {[%emt 0:04:26]} Qxf6 {[%emt 0:00:12]} 11. O-O {[%emt 0:01:42]} Bxb3 {[%emt 0:04:33]} 12. axb3 {[%emt 0:00:00]} O-O {[%emt 0:00:00]} 13. b4 {[%emt 0:04:33]} Bb6 {[%emt 0:00:32]} 14. Be3 {[%emt 0:01:11]} Bxe3 {[%emt 0:00:52]} 15. fxe3 {[%emt 0:00:00]} Qe6 {[%emt 0:03:20]} 16. Qe2 {[%emt 0:02:43]} d5 {[%emt 0:02:37]} 17. exd5 {[%emt 0:04:55]} Qxd5 {[%emt 0:00:00]} 18. e4 {[%emt 0:02:36]} Qd6 {[%emt 0:05:14]} 19. Nh4 {[%emt 0:04:55]} Ne7 {[%emt 0:04:22]} 20. Kh1 {[%emt 0:06:54]} c5 {[%emt 0:00:47]} 21. bxc5 {[%emt 0:03:54]} Qxc5 {[%emt 0:00:09]} 22. Qh5 {[%emt 0:00:54]} Qd6 {[%emt 0:02:28]} 23. Rf3 {[%emt 0:01:50]} a5 {[%emt 0:02:00]} 24. Raf1 {[%emt 0:02:31]} b4 {[%emt 0:01:47]} 25. cxb4 {[%emt 0:16:58]} axb4 {[%emt 0:00:00]} 26. Rxf7 {[%emt 0:13:20]} Qxd3 {[%emt 0:00:00]} 27. Rxg7+ {[%emt 0:01:54]} Kxg7 {[%emt 0:00:00]} 28. Qxe5+ {[%emt 0:00:00]} Kg8 {[%emt 0:02:54]} 29. Qe6+ {[%emt 0:00:00]} Kh8 {[%emt 0:00:29]} 30. Qxh6+ {[%emt 0:01:03]} Kg8 {[%emt 0:00:00]} 31. Qg5+ {[%emt 0:00:17]} Kh8 {[%emt 0:00:00]} 32. Qe5+ {[%emt 0:02:18]} Kg8 {[%emt 0:00:00]} 33. Qe6+ {[%emt 0:02:13]} Kh8 {[%emt 0:00:00]} 34. Qh6+ {[%emt 0:00:54]} Kg8 {[%emt 0:00:00]} 35. Qg5+ {[%emt 0:00:00]} Kh8 {[%emt 0:00:00]} 36. Qh5+ {[%emt 0:00:00]} Kg7 {[%emt 0:00:32]} 37. Qg5+ {[%emt 0:00:00]} Kh8 {[%emt 0:00:00]} 38. Qh6+ {[%emt 0:00:00]} Kg8 {[%emt 0:00:00]} 39. Qg5+ {[%emt 0:00:00]} Kh8 {[%emt 0:00:00]} 1/2-1/2